fUSD/lending_fUSD_20260511
["ID","MTS","AMOUNT","RATE_DAILY","PERIOD"]
[422020058,1778477442000,-500.0,0.00014253,2]
[422020057,1778477442000,-1985.65697312,0.00014253,2]
[422020060,1778477442000,-500.0,0.00014253,2]
[422020059,1778477442000,-500.0,0.00014253,2]
[422020064,1778477442000,-500.0,0.00014253,2]
[422020065,1778477442000,-500.0,0.00014253,2]
[422020066,1778477442000,-500.0,0.00014253,2]
[422020075,1778477442000,-500.0,0.00014253,2]
[422020067,1778477442000,-351.04648443,0.00014253,2]
[422020076,1778477442000,-500.0,0.00014253,2]
[422020035,1778477442000,-604.1202792,0.00014154,2]
[422020061,1778477442000,-500.0,0.00014253,2]
[422020031,1778477442000,-21526.82891913,0.00014154,2]
[422020017,1778477442000,-166.66,0.0001411,2]
[422020029,1778477442000,-302.97385118,0.00014154,2]
[422020004,1778477442000,-166.66,0.00013973,2]
[422020003,1778477442000,-255.0,0.0001395,2]
[422020005,1778477442000,-2325.42143886,0.0001399,2]
[422020006,1778477442000,-150.0,0.00013999,2]
[422020007,1778477442000,-250.0,0.00014,2]
[422020008,1778477442000,-272.781575,0.00014004,2]
[422020009,1778477442000,-2157.14243826,0.00014038,2]
[422020010,1778477442000,-500.0,0.00014046,2]
[422020011,1778477442000,-150.0,0.00014054,2]
[422020013,1778477442000,-167.34,0.00014072,2]
[422020014,1778477442000,-510.0563954,0.000141,2]
[422020012,1778477442000,-26249.24944414,0.00014064,2]
[422020019,1778477442000,-500.0,0.00014153,2]
[422020016,1778477442000,-150.0,0.00014109,2]
[422020018,1778477442000,-1680.0,0.0001413,2]
[422020015,1778477442000,-1203.58315991,0.000141,2]
[422020020,1778477442000,-627.24854306,0.00014153,2]
[422020022,1778477442000,-500.0,0.00014153,2]
[422020023,1778477442000,-500.0,0.00014153,2]
[422020021,1778477442000,-500.0,0.00014153,2]
[422020024,1778477442000,-500.0,0.00014153,2]
[422020028,1778477442000,-10651.83602037,0.00014154,2]
[422020026,1778477442000,-5000.0,0.00014154,2]
[422020025,1778477442000,-314.27051003,0.00014153,2]
[422020027,1778477442000,-1476.14135514,0.00014154,2]
[422020030,1778477442000,-1733.58218583,0.00014154,2]
[422020069,1778477442000,-500.0,0.00014253,2]
[422020071,1778477442000,-500.0,0.00014253,2]
[422020074,1778477442000,-500.0,0.00014253,2]
[422020105,1778477442000,-526.33982411,0.00014253,2]
[422020106,1778477442000,-500.0,0.00014253,2]
[422020107,1778477442000,-500.0,0.00014253,2]
[422020110,1778477442000,-500.0,0.00014253,2]
[422020109,1778477442000,-468.2230542,0.00014253,2]
[422020108,1778477442000,-500.0,0.00014253,2]
[422020111,1778477442000,-500.0,0.00014253,2]
[422020113,1778477442000,-500.0,0.00014253,2]
[422020112,1778477442000,-514.28214689,0.00014253,2]
[422020114,1778477442000,-500.0,0.00014253,2]
[422020070,1778477442000,-500.0,0.00014253,2]
[422020125,1778477442000,-1161.3,0.00014253,2]
[422020115,1778477442000,-500.0,0.00014253,2]
[422020118,1778477442000,-860.1,0.00014253,2]
[422020119,1778477442000,-860.1,0.00014253,2]
[422020117,1778477442000,-500.0,0.00014253,2]
[422020121,1778477442000,-860.1,0.00014253,2]
[422020123,1778477442000,-1161.3,0.00014253,2]
[422020124,1778477442000,-1161.3,0.00014253,2]
[422020122,1778477442000,-860.1,0.00014253,2]
[422020120,1778477442000,-860.1,0.00014253,2]
[422020126,1778477442000,-1161.3,0.00014253,2]
[422020128,1778477442000,-500.0,0.00014253,2]
[422020127,1778477442000,-1161.3,0.00014253,2]
[422020129,1778477442000,-500.0,0.00014253,2]
[422020104,1778477442000,-500.0,0.00014253,2]
[422020103,1778477442000,-500.0,0.00014253,2]
[422020116,1778477442000,-500.0,0.00014253,2]
[422020098,1778477442000,-500.0,0.00014253,2]
[422020102,1778477442000,-500.0,0.00014253,2]
[422020072,1778477442000,-500.0,0.00014253,2]
[422020073,1778477442000,-500.0,0.00014253,2]
[422020078,1778477442000,-500.0,0.00014253,2]
[422020077,1778477442000,-500.0,0.00014253,2]
[422020080,1778477442000,-500.0,0.00014253,2]
[422020079,1778477442000,-500.0,0.00014253,2]
[422020085,1778477442000,-500.0,0.00014253,2]
[422020083,1778477442000,-500.0,0.00014253,2]
[422020082,1778477442000,-500.0,0.00014253,2]
[422020086,1778477442000,-500.0,0.00014253,2]
[422020084,1778477442000,-500.0,0.00014253,2]
[422020089,1778477442000,-500.0,0.00014253,2]
[422020081,1778477442000,-500.0,0.00014253,2]
[422020088,1778477442000,-500.81977375,0.00014253,2]
[422020087,1778477442000,-500.0,0.00014253,2]
[422020101,1778477442000,-500.0,0.00014253,2]
[422020100,1778477442000,-500.0,0.00014253,2]
[422020093,1778477442000,-500.0,0.00014253,2]
[422020094,1778477442000,-500.0,0.00014253,2]
[422020096,1778477442000,-500.0,0.00014253,2]
[422020099,1778477442000,-500.0,0.00014253,2]
[422020097,1778477442000,-500.0,0.00014253,2]
[422020092,1778477442000,-500.0,0.00014253,2]
[422020090,1778477442000,-500.0,0.00014253,2]
[422020091,1778477442000,-500.2665976,0.00014253,2]
[422020095,1778477442000,-500.0,0.00014253,2]
[422020170,1778477443000,-500.0,0.00014253,2]
[422020169,1778477443000,-188.48257455,0.00014253,2]
[422020165,1778477443000,-152.039934,0.00014253,2]
[422020168,1778477443000,-500.0,0.00014253,2]
[422020166,1778477443000,-152.039934,0.00014253,2]
[422020164,1778477443000,-298.50650332,0.00014253,2]
[422020163,1778477443000,-501.931273,0.00014253,2]
[422020161,1778477443000,-500.0,0.00014253,2]
[422020162,1778477443000,-500.0,0.00014253,2]
[422020171,1778477443000,-152.039934,0.00014253,2]
[422020167,1778477443000,-152.039934,0.00014253,2]
[422020172,1778477443000,-635.310093,0.00014253,2]
[422020160,1778477443000,-500.0,0.00014253,2]
[422020174,1778477443000,-635.310093,0.00014253,2]
[422020177,1778477443000,-324.92513412,0.00014253,2]
[422020175,1778477443000,-635.310093,0.00014253,2]
[422020176,1778477443000,-173.97419088,0.00014253,2]
[422020182,1778477443000,-156.568589,0.00014254,2]
[422020183,1778477443000,-87670.7618648,0.00014254,2]
[422020180,1778477443000,-2622.8272434,0.00014254,2]
[422020179,1778477443000,-1304762.9834623,0.00014254,2]
[422020181,1778477443000,-17341.5230537,0.00014254,2]
[422020178,1778477443000,-2311.3476095,0.00014254,2]
[422020184,1778477443000,-151.0,0.00014254,2]
[422020185,1778477443000,-151.0,0.00014254,2]
[422020173,1778477443000,-635.310093,0.00014253,2]
[422020157,1778477443000,-500.0,0.00014253,2]
[422020186,1778477443000,-184.080565,0.00014254,2]
[422020158,1778477443000,-500.0,0.00014253,2]
[422020130,1778477443000,-500.0,0.00014253,2]
[422020131,1778477443000,-500.0,0.00014253,2]
[422020136,1778477443000,-500.0,0.00014253,2]
[422020134,1778477443000,-500.0,0.00014253,2]
[422020132,1778477443000,-500.0,0.00014253,2]
[422020135,1778477443000,-500.0,0.00014253,2]
[422020133,1778477443000,-500.0,0.00014253,2]
[422020137,1778477443000,-500.0,0.00014253,2]
[422020139,1778477443000,-500.0,0.00014253,2]
[422020138,1778477443000,-500.0,0.00014253,2]
[422020141,1778477443000,-500.0,0.00014253,2]
[422020140,1778477443000,-500.0,0.00014253,2]
[422020155,1778477443000,-500.0,0.00014253,2]
[422020143,1778477443000,-500.0,0.00014253,2]
[422020142,1778477443000,-500.0,0.00014253,2]
[422020145,1778477443000,-500.0,0.00014253,2]
[422020146,1778477443000,-591.7033513,0.00014253,2]
[422020147,1778477443000,-500.0,0.00014253,2]
[422020149,1778477443000,-500.0,0.00014253,2]
[422020150,1778477443000,-300.0,0.00014253,2]
[422020159,1778477443000,-500.0,0.00014253,2]
[422020148,1778477443000,-500.0,0.00014253,2]
[422020152,1778477443000,-500.0,0.00014253,2]
[422020156,1778477443000,-500.0,0.00014253,2]
[422020153,1778477443000,-500.0,0.00014253,2]
[422020154,1778477443000,-500.0,0.00014253,2]
[422020144,1778477443000,-500.0,0.00014253,2]
[422020187,1778477443000,-160.656475,0.00014254,2]
[422020151,1778477443000,-500.0,0.00014253,2]
[422020193,1778477443000,-184.080565,0.00014254,2]
[422020223,1778477443000,-152.039934,0.00014254,2]
[422020224,1778477443000,-635.310093,0.00014254,2]
[422020225,1778477443000,-635.310093,0.00014254,2]
[422020266,1778477443000,-501.6299974,0.00014273,2]
[422020222,1778477443000,-152.039934,0.00014254,2]
[422020230,1778477443000,-635.310093,0.00014254,2]
[422020234,1778477443000,-747.995271,0.00014254,2]
[422020235,1778477443000,-747.995271,0.00014254,2]
[422020232,1778477443000,-635.310093,0.00014254,2]
[422020228,1778477443000,-747.995271,0.00014254,2]
[422020226,1778477443000,-747.995271,0.00014254,2]
[422020239,1778477443000,-635.310093,0.00014254,2]
[422020221,1778477443000,-152.039934,0.00014254,2]
[422020241,1778477443000,-747.995271,0.00014254,2]
[422020243,1778477443000,-747.995271,0.00014254,2]
[422020246,1778477443000,-635.310093,0.00014254,2]
[422020254,1778477443000,-168.35361659,0.00014273,2]
[422020252,1778477443000,-747.995271,0.00014254,2]
[422020248,1778477443000,-635.310093,0.00014254,2]
[422020260,1778477443000,-160.96244533,0.00014273,2]
[422020256,1778477443000,-500.0,0.00014273,2]
[422020258,1778477443000,-500.0,0.00014273,2]
[422020262,1778477443000,-319.85067594,0.00014273,2]
[422020264,1778477443000,-500.0,0.00014273,2]
[422020268,1778477443000,-500.0,0.00014273,2]
[422020188,1778477443000,-184.080565,0.00014254,2]
[422020250,1778477443000,-747.995271,0.00014254,2]
[422020219,1778477443000,-152.039934,0.00014254,2]
[422020237,1778477443000,-635.310093,0.00014254,2]
[422020217,1778477443000,-152.039934,0.00014254,2]
[422020215,1778477443000,-152.039934,0.00014254,2]
[422020192,1778477443000,-184.080565,0.00014254,2]
[422020191,1778477443000,-184.080565,0.00014254,2]
[422020189,1778477443000,-184.080565,0.00014254,2]
[422020195,1778477443000,-151.0,0.00014254,2]
[422020190,1778477443000,-184.080565,0.00014254,2]
[422020196,1778477443000,-151.0,0.00014254,2]
[422020198,1778477443000,-151.0,0.00014254,2]
[422020197,1778477443000,-151.0,0.00014254,2]
[422020199,1778477443000,-151.0,0.00014254,2]
[422020201,1778477443000,-151.0,0.00014254,2]
[422020207,1778477443000,-390.754039,0.00014254,2]
[422020205,1778477443000,-151.0,0.00014254,2]
[422020200,1778477443000,-151.0,0.00014254,2]
[422020194,1778477443000,-184.080565,0.00014254,2]
[422020213,1778477443000,-390.754039,0.00014254,2]
[422020204,1778477443000,-151.0,0.00014254,2]
[422020206,1778477443000,-272.838596,0.00014254,2]
[422020203,1778477443000,-151.0,0.00014254,2]
[422020208,1778477443000,-390.754039,0.00014254,2]
[422020209,1778477443000,-390.754039,0.00014254,2]
[422020211,1778477443000,-390.754039,0.00014254,2]
[422020212,1778477443000,-390.754039,0.00014254,2]
[422020210,1778477443000,-390.754039,0.00014254,2]
[422020202,1778477443000,-151.0,0.00014254,2]
[422020214,1778477443000,-390.754039,0.00014254,2]
[422020216,1778477443000,-152.039934,0.00014254,2]
[422020218,1778477443000,-152.039934,0.00014254,2]
[422020342,1778477444000,-860.1,0.00014288,2]
[422020340,1778477444000,-860.1,0.00014288,2]
[422020332,1778477444000,-500.0,0.00014288,2]
[422020344,1778477444000,-860.1,0.00014288,2]
[422020339,1778477444000,-860.1,0.00014288,2]
[422020338,1778477444000,-500.0,0.00014288,2]
[422020334,1778477444000,-500.0,0.00014288,2]
[422020333,1778477444000,-500.0,0.00014288,2]
[422020341,1778477444000,-860.1,0.00014288,2]
[422020335,1778477444000,-500.0,0.00014288,2]
[422020336,1778477444000,-500.0,0.00014288,2]
[422020352,1778477444000,-361.92037938,0.00014288,2]
[422020337,1778477444000,-500.0,0.00014288,2]
[422020354,1778477444000,-510.85456794,0.00014288,2]
[422020349,1778477444000,-1161.3,0.00014288,2]
[422020353,1778477444000,-500.0,0.00014288,2]
[422020343,1778477444000,-860.1,0.00014288,2]
[422020345,1778477444000,-1161.3,0.00014288,2]
[422020348,1778477444000,-1161.3,0.00014288,2]
[422020346,1778477444000,-1161.3,0.00014288,2]
[422020347,1778477444000,-1161.3,0.00014288,2]
[422020350,1778477444000,-1161.3,0.00014288,2]
[422020351,1778477444000,-1161.3,0.00014288,2]
[422020367,1778477444000,-306.5537977,0.00014288,2]
[422020365,1778477444000,-500.0,0.00014288,2]
[422020356,1778477444000,-625.19518363,0.00014288,2]
[422020357,1778477444000,-500.0,0.00014288,2]
[422020355,1778477444000,-500.0,0.00014288,2]
[422020331,1778477444000,-500.0,0.00014288,2]
[422020271,1778477444000,-500.0,0.00014273,2]
[422020329,1778477444000,-500.0,0.00014288,2]
[422020369,1778477444000,-184.080565,0.00014289,2]
[422020276,1778477444000,-150.0,0.00014274,2]
[422020273,1778477444000,-500.0,0.00014273,2]
[422020286,1778477444000,-150.0,0.00014274,2]
[422020284,1778477444000,-150.00000001,0.00014274,2]
[422020282,1778477444000,-150.0,0.00014274,2]
[422020318,1778477444000,-500.0,0.00014288,2]
[422020295,1778477444000,-500.0,0.00014288,2]
[422020315,1778477444000,-500.0,0.00014288,2]
[422020305,1778477444000,-500.0,0.00014288,2]
[422020299,1778477444000,-500.0,0.00014288,2]
[422020309,1778477444000,-500.0,0.00014288,2]
[422020313,1778477444000,-500.0,0.00014288,2]
[422020298,1778477444000,-500.0,0.00014288,2]
[422020293,1778477444000,-324.67402196,0.00014288,2]
[422020290,1778477444000,-300.0,0.00014287,2]
[422020288,1778477444000,-198.80933168,0.00014286,2]
[422020302,1778477444000,-500.0,0.00014288,2]
[422020330,1778477444000,-500.0,0.00014288,2]
[422020319,1778477444000,-500.0,0.00014288,2]
[422020322,1778477444000,-500.0,0.00014288,2]
[422020325,1778477444000,-500.0,0.00014288,2]
[422020321,1778477444000,-500.0,0.00014288,2]
[422020323,1778477444000,-500.0,0.00014288,2]
[422020328,1778477444000,-500.0,0.00014288,2]
[422020327,1778477444000,-500.0,0.00014288,2]
[422020324,1778477444000,-500.0,0.00014288,2]
[422020326,1778477444000,-500.0,0.00014288,2]
[422020366,1778477444000,-500.0,0.00014288,2]
[422020274,1778477444000,-502.49709739,0.00014273,2]
[422020359,1778477444000,-500.0,0.00014288,2]
[422020397,1778477444000,-2000.0,0.0001429,2]
[422020407,1778477444000,-1002.83514372,0.00014489,2]
[422020396,1778477444000,-28903.8009,0.0001429,2]
[422020398,1778477444000,-500.0,0.0001432,2]
[422020401,1778477444000,-500.0,0.00014489,2]
[422020405,1778477444000,-478.0,0.00014489,2]
[422020403,1778477444000,-500.0,0.00014489,2]
[422020404,1778477444000,-500.0,0.00014489,2]
[422020399,1778477444000,-166.66,0.00014384,2]
[422020406,1778477444000,-180.0,0.00014489,3]
[422020400,1778477444000,-501.26891246,0.00014489,2]
[422020408,1778477444000,-933.12,0.00014497,2]
[422020410,1778477444000,-500.0,0.00014594,2]
[422020413,1778477444000,-151.0,0.00014661,2]
[422020419,1778477444000,-552.65426,0.0001475,2]
[422020409,1778477444000,-2236.95670848,0.00014586,2]
[422020420,1778477444000,-552.65426,0.0001475,2]
[422020414,1778477444000,-216.0,0.00014663,5]
[422020412,1778477444000,-159.0113123,0.00014658,2]
[422020411,1778477444000,-26249.24944412,0.00014621,2]
[422020415,1778477444000,-257.30270608,0.00014709,2]
[422020417,1778477444000,-552.65426,0.0001475,2]
[422020418,1778477444000,-552.65426,0.0001475,2]
[422020416,1778477444000,-552.65426,0.0001475,2]
[422020421,1778477444000,-552.65426,0.0001475,2]
[422020422,1778477444000,-200.0,0.00014781,2]
[422020368,1778477444000,-151.0,0.00014289,2]
[422020391,1778477444000,-747.995271,0.00014289,2]
[422020393,1778477444000,-747.995271,0.00014289,2]
[422020402,1778477444000,-500.0,0.00014489,2]
[422020392,1778477444000,-635.310093,0.00014289,2]
[422020360,1778477444000,-500.0,0.00014288,2]
[422020389,1778477444000,-747.995271,0.00014289,2]
[422020358,1778477444000,-500.0,0.00014288,2]
[422020363,1778477444000,-500.0,0.00014288,2]
[422020364,1778477444000,-500.0,0.00014288,2]
[422020361,1778477444000,-500.0,0.00014288,2]
[422020370,1778477444000,-184.080565,0.00014289,2]
[422020371,1778477444000,-184.080565,0.00014289,2]
[422020372,1778477444000,-184.080565,0.00014289,2]
[422020377,1778477444000,-151.0,0.00014289,2]
[422020382,1778477444000,-390.754039,0.00014289,2]
[422020380,1778477444000,-390.754039,0.00014289,2]
[422020381,1778477444000,-390.754039,0.00014289,2]
[422020373,1778477444000,-151.0,0.00014289,2]
[422020362,1778477444000,-500.0,0.00014288,2]
[422020376,1778477444000,-151.0,0.00014289,2]
[422020379,1778477444000,-151.0,0.00014289,2]
[422020390,1778477444000,-635.310093,0.00014289,2]
[422020395,1778477444000,-747.995271,0.00014289,2]
[422020384,1778477444000,-152.039934,0.00014289,2]
[422020388,1778477444000,-635.310093,0.00014289,2]
[422020385,1778477444000,-152.039934,0.00014289,2]
[422020394,1778477444000,-635.310093,0.00014289,2]
[422020386,1778477444000,-152.039934,0.00014289,2]
[422020383,1778477444000,-390.754039,0.00014289,2]
[422020374,1778477444000,-500.0,0.00014289,2]
[422020378,1778477444000,-151.0,0.00014289,2]
[422020375,1778477444000,-860.1,0.00014289,2]
[422020387,1778477444000,-152.039934,0.00014289,2]
[422020467,1778477445000,-1161.3,0.00014999,2]
[422020459,1778477445000,-860.1,0.00014999,2]
[422020463,1778477445000,-860.1,0.00014999,2]
[422020462,1778477445000,-860.1,0.00014999,2]
[422020448,1778477445000,-500.0,0.00014999,2]
[422020460,1778477445000,-860.1,0.00014999,2]
[422020465,1778477445000,-1161.3,0.00014999,2]
[422020458,1778477445000,-158.1506329,0.00014999,2]
[422020457,1778477445000,-500.0,0.00014999,2]
[422020446,1778477445000,-339.86,0.00014985,2]
[422020464,1778477445000,-1161.3,0.00014999,2]
[422020461,1778477445000,-860.1,0.00014999,2]
[422020466,1778477445000,-1161.3,0.00014999,2]
[422020474,1778477445000,-152.039933,0.00014999,2]
[422020470,1778477445000,-228.709672,0.00014999,2]
[422020468,1778477445000,-1161.3,0.00014999,2]
[422020479,1778477445000,-635.310093,0.00014999,2]
[422020472,1778477445000,-152.039934,0.00014999,2]
[422020471,1778477445000,-152.039934,0.00014999,2]
[422020480,1778477445000,-747.995271,0.00014999,2]
[422020473,1778477445000,-152.039934,0.00014999,2]
[422020476,1778477445000,-747.995271,0.00014999,2]
[422020478,1778477445000,-747.995271,0.00014999,2]
[422020477,1778477445000,-635.310093,0.00014999,2]
[422020483,1778477445000,-213.0,0.00015,5]
[422020445,1778477445000,-288.7,0.00014985,2]
[422020469,1778477445000,-1161.3,0.00014999,2]
[422020447,1778477445000,-500.0,0.00014999,2]
[422020432,1778477445000,-151.0,0.00014821,2]
[422020454,1778477445000,-500.0,0.00014999,2]
[422020482,1778477445000,-747.995271,0.00014999,2]
[422020424,1778477445000,-151.0,0.000148,2]
[422020423,1778477445000,-151.0,0.000148,2]
[422020425,1778477445000,-154.727129,0.000148,2]
[422020426,1778477445000,-1000.0,0.00014821,2]
[422020429,1778477445000,-504.16927038,0.00014821,2]
[422020431,1778477445000,-502.38692221,0.00014821,2]
[422020430,1778477445000,-1000.0,0.00014821,2]
[422020428,1778477445000,-1000.0,0.00014821,2]
[422020427,1778477445000,-503.16945087,0.00014821,2]
[422020433,1778477445000,-534.0437336,0.00014868,2]
[422020435,1778477445000,-184.080565,0.000149,2]
[422020441,1778477445000,-500.0,0.00014973,2]
[422020456,1778477445000,-500.0,0.00014999,2]
[422020437,1778477445000,-184.080565,0.000149,2]
[422020438,1778477445000,-184.080565,0.000149,2]
[422020434,1778477445000,-151.0,0.000149,2]
[422020440,1778477445000,-228.35151489,0.00014973,2]
[422020439,1778477445000,-190.0,0.00014959,2]
[422020443,1778477445000,-502.18646218,0.00014973,2]
[422020444,1778477445000,-353.31566906,0.00014973,2]
[422020442,1778477445000,-500.0,0.00014973,2]
[422020450,1778477445000,-500.0,0.00014999,2]
[422020451,1778477445000,-500.0,0.00014999,2]
[422020449,1778477445000,-500.0,0.00014999,2]
[422020452,1778477445000,-500.0,0.00014999,2]
[422020455,1778477445000,-500.0,0.00014999,2]
[422020453,1778477445000,-383.12162624,0.00014999,2]
[422020436,1778477445000,-184.080565,0.000149,2]
[422020481,1778477445000,-635.310098,0.00014999,2]
[422020486,1778477445000,-500477.09732039,0.00015,2]
[422020484,1778477445000,-733724.20467383,0.00015,2]
[422020514,1778477445000,-747.995271,0.00015,2]
[422020518,1778477445000,-900.0,0.00015068,2]
[422020515,1778477445000,-747.995271,0.00015,2]
[422020521,1778477445000,-483.955109,0.00015068,2]
[422020532,1778477445000,-483.955109,0.00015068,2]
[422020531,1778477445000,-483.955109,0.00015068,2]
[422020523,1778477445000,-483.955109,0.00015068,2]
[422020520,1778477445000,-483.955109,0.00015068,2]
[422020524,1778477445000,-483.955109,0.00015068,2]
[422020529,1778477445000,-483.955109,0.00015068,2]
[422020525,1778477445000,-483.955109,0.00015068,2]
[422020528,1778477445000,-483.955109,0.00015068,2]
[422020526,1778477445000,-483.955109,0.00015068,2]
[422020530,1778477445000,-483.955109,0.00015068,2]
[422020527,1778477445000,-483.955109,0.00015068,2]
[422020533,1778477445000,-483.955109,0.00015068,2]
[422020536,1778477445000,-483.955109,0.00015068,2]
[422020544,1778477445000,-500.0,0.00015164,2]
[422020535,1778477445000,-483.955109,0.00015068,2]
[422020534,1778477445000,-483.955109,0.00015068,2]
[422020537,1778477445000,-483.955109,0.00015068,2]
[422020539,1778477445000,-483.955118,0.00015068,2]
[422020540,1778477445000,-150.0,0.00015068,2]
[422020541,1778477445000,-2319.72410669,0.00015134,2]
[422020542,1778477445000,-433.0,0.00015145,2]
[422020475,1778477445000,-635.310093,0.00014999,2]
[422020538,1778477445000,-483.955109,0.00015068,2]
[422020512,1778477445000,-390.75403,0.00015,2]
[422020513,1778477445000,-747.995271,0.00015,2]
[422020543,1778477445000,-167.34,0.00015145,2]
[422020516,1778477445000,-747.995269,0.00015,2]
[422020517,1778477445000,-40912.52041905,0.00015015,2]
[422020488,1778477445000,-155.112143,0.00015,2]
[422020485,1778477445000,-1054.46,0.00015,2]
[422020495,1778477445000,-184.080565,0.00015,2]
[422020490,1778477445000,-151.0,0.00015,2]
[422020489,1778477445000,-151.0,0.00015,2]
[422020491,1778477445000,-151.0,0.00015,2]
[422020493,1778477445000,-164.311607,0.00015,2]
[422020494,1778477445000,-184.080565,0.00015,2]
[422020492,1778477445000,-151.0,0.00015,2]
[422020507,1778477445000,-390.754039,0.00015,2]
[422020497,1778477445000,-184.080573,0.00015,2]
[422020496,1778477445000,-184.080565,0.00015,2]
[422020487,1778477445000,-151.0,0.00015,2]
[422020499,1778477445000,-151.0,0.00015,2]
[422020498,1778477445000,-185.636424,0.00015,2]
[422020509,1778477445000,-390.754039,0.00015,2]
[422020511,1778477445000,-390.754039,0.00015,2]
[422020510,1778477445000,-390.754039,0.00015,2]
[422020508,1778477445000,-390.754039,0.00015,2]
[422020501,1778477445000,-151.0,0.00015,2]
[422020519,1778477445000,-483.955109,0.00015068,2]
[422020505,1778477445000,-390.754039,0.00015,2]
[422020500,1778477445000,-151.0,0.00015,2]
[422020506,1778477445000,-390.754039,0.00015,2]
[422020504,1778477445000,-151.0,0.00015,2]
[422020503,1778477445000,-151.0,0.00015,2]
[422020502,1778477445000,-151.0,0.00015,2]
[422020583,1778477446000,-300.0,0.00016438,3]
[422020581,1778477446000,-259.76502518,0.00016438,2]
[422020582,1778477446000,-300.0,0.00016438,3]
[422020573,1778477446000,-2494.55939289,0.0001623,2]
[422020574,1778477446000,-26249.24944412,0.00016292,2]
[422020575,1778477446000,-775.9,0.00016438,2]
[422020577,1778477446000,-503.33401719,0.00016438,2]
[422020578,1778477446000,-150.0,0.00016438,2]
[422020586,1778477446000,-300.0,0.00016438,3]
[422020576,1778477446000,-900.0,0.00016438,2]
[422020579,1778477446000,-503.15133284,0.00016438,2]
[422020599,1778477446000,-1931.336543,0.00016438,2]
[422020588,1778477446000,-502.68085075,0.00016438,2]
[422020584,1778477446000,-300.0,0.00016438,3]
[422020585,1778477446000,-300.0,0.00016438,3]
[422020590,1778477446000,-151.0,0.00016438,2]
[422020598,1778477446000,-1931.336543,0.00016438,2]
[422020589,1778477446000,-151.0,0.00016438,2]
[422020592,1778477446000,-500.0,0.00016438,2]
[422020591,1778477446000,-151.0,0.00016438,2]
[422020593,1778477446000,-186.53575633,0.00016438,2]
[422020594,1778477446000,-503.7475177,0.00016438,2]
[422020595,1778477446000,-500.0,0.00016438,2]
[422020580,1778477446000,-502.91035956,0.00016438,2]
[422020587,1778477446000,-500.0,0.00016438,2]
[422020572,1778477446000,-159.63,0.000162,2]
[422020550,1778477446000,-212.31192935,0.00015438,2]
[422020569,1778477446000,-9999.99,0.00016116,2]
[422020596,1778477446000,-500.0,0.00016438,2]
[422020545,1778477446000,-26249.24944412,0.00015178,2]
[422020555,1778477446000,-250.0,0.00015616,2]
[422020554,1778477446000,-2351.0,0.00015543,2]
[422020556,1778477446000,-150.0,0.00015648,2]
[422020553,1778477446000,-266.12640374,0.00015521,2]
[422020551,1778477446000,-687.29372073,0.0001547,2]
[422020557,1778477446000,-155.0,0.00015677,2]
[422020546,1778477446000,-508.38062756,0.00015368,2]
[422020548,1778477446000,-1500.0,0.00015368,2]
[422020549,1778477446000,-350.0,0.0001537,2]
[422020547,1778477446000,-1511.32798627,0.00015368,2]